Cogmind - Beta 17 @@@ ROGUE MODE // 2026.08.06 @ 17:03:47 Player: Petvaria Result: Destroyed by Autobeam Turret with Autobeam Performance ------------- Evolutions (0) 0 Regions Visited (2) 400 Robots Destroyed (31) 155 Value Destroyed (929) 929 Prototype IDs (14) 280 Alien Tech Used (0) 0 Bonus (0) 0 TOTAL SCORE: 1764 Bonus ------- None Cogmind --------- Core Integrity 0/250 Matter 292/300 Energy 179/200 System Corruption 1% Temperature Cool (12) Movement Rolling (115) Ox1 Location -10/Subcaves Parts ------- > --- POWER (1) -------- Subdweller Power Source > --- PROPULSION (2) --- Spiked Treads Compact Wheel > --- UTILITY (2) ------ Scrap Shield > --- WEAPON (2) ------- Subdweller Laser Subdweller Machine Gun > --- INVENTORY (5) ---- Subdweller Monowheel Makeshift Thermal Plating Subdweller Laser Subdweller Laser Light Cannon Peak State ------------ > --- POWER ------------ Subdweller Power Source > --- PROPULSION ------- Spiked Treads Compact Wheel > --- UTILITY ---------- Huge Storage Unit Makeshift Thermal Plating > --- WEAPON ----------- Subdweller Laser Subdweller Machine Gun > --- INVENTORY -------- Subdweller Power Source Subdweller Power Source Subdweller Monowheel Subdweller Monowheel Subdweller Monowheel Subdweller Monowheel Disposable Heat Sink Subdweller Optics Subdweller Optics Makeshift Targeting Computer Scrap Shield Subdweller Laser Subdweller Laser Battle Rifle Light Cannon [Rating: 17] Favorites ----------- Power Subdweller Power Source Engine Subdweller Power Source Propulsion Compact Wheel Treads Light Treads Wheel Compact Wheel Utility Scrap Shield Device Seismic Detector Storage Small Storage Unit Protection Scrap Shield Weapon Subdweller Machine Gun Energy Gun Subdweller Laser Energy Cannon Subdweller Beam Cannon Ballistic Gun Subdweller Machine Gun Ballistic Cannon Light Cannon Launcher Grenade Launcher Build | -11 -10 -10 ------- Run | Yrd Mat Sub Slots Evolved . | . . . Power . | . . . Propulsion . | . . . Utility . | . . . Weapon . | . . . Parts Attached 31 | 6 9 16 Power 3 | 1 1 1 Engine 3 | 1 1 1 Core . | . . . Reactor . | . . . Propulsion 8 | 2 2 4 Treads 5 | 2 2 1 Leg . | . . . Wheel 3 | . . 3 Hover . | . . . Flight . | . . . Utility 8 | 2 1 5 Device 2 | 1 . 1 Storage 3 | 1 1 1 Processor . | . . . Hackware . | . . . Protection 3 | . . 3 Artifact . | . . . Weapon 12 | 1 5 6 Energy Gun 3 | . 2 1 Energy Cannon 1 | . . 1 Ballistic Gun 6 | 1 2 3 Ballistic Cannon 1 | . . 1 Launcher 1 | . 1 . Special Weapon . | . . . Impact Weapon . | . . . Slashing Weapon . | . . . Piercing Weapon . | . . . Special Melee Weapon . | . . . Unidentified Prototypes . | . . . Parts Lost 8 | . 1 7 Power 2 | . 1 1 Propulsion 4 | . . 4 Utility 1 | . . 1 Weapon 1 | . . 1 Highest Loss Streak 5 | . 1 5 To Critical Strikes . | . . . Average Backups 7 | 5 8 6 Power . | . . . Propulsion 2 | 2 3 2 Utility 2 | . 1 2 Weapon 2 | 1 2 1 Tool/Special . | . . . Unused Backups 18 | 1 5 12 Power 4 | . 2 2 Propulsion 5 | 1 2 2 Utility 5 | . . 5 Weapon 4 | . 1 3 Tool/Special . | . . . Average Slot Usage (%) 89 | . 97 87 Engine 13 | . 13 13 Treads 9 | . 28 5 Wheel 18 | . . 22 Device 3 | . 14 . Storage 5 | . 14 3 Protection 9 | . . 12 Energy Gun 5 | . 5 5 Energy Cannon 6 | . . 7 Ballistic Gun 14 | . 20 12 Ballistic Cannon 1 | . . 1 Peak Build Rating 17 | 6 8 17 Average Rating 11 | 4 7 13 On Entrance 4 | . 6 8 Avg Prop Armor Cover (%) 4 | . . 4 Naked Turns . | . . . Heaviest Build 97 | 12 48 97 Greatest Support 40 | 40 40 40 Greatest Overweight (x) 6 | . 1 6 Average Overweight (x) 1 | . . 2 Largest Inventory Capacity 25 | 8 20 25 Average Capacity 9 | 7 10 9 Most Carried 17 | 8 10 17 Average Carried 7 | 6 8 7 Final Capacity 20 | 8 20 5 Final Carried 10 | 7 10 5 Class Distribution -------------------- 59% | Subdweller-Mutant 28% | Mutant 11% | Scavenger-Mutant Dominant Class ---------------- Mutant | -10/Materials Subdweller-Mutant | -10/Subcaves Resources | -11 -10 -10 ----------- Run | Yrd Mat Sub Matter Collected 914 | 203 279 432 Remotely . | . . . Salvage Created 1180 | 106 474 600 Parts 84 | 10 32 42 Haulers Intercepted 1 | . 1 . Recyclers Shooed 4 | 2 2 . Parts Field Recycled . | . . . Retrieved Matter . | . . . Parts Self-Destructed 10 | . . 10 Prevented . | . . . Parts Restored . | . . . Kills | -11 -10 -10 ------- Run | Yrd Mat Sub Combat Hostiles Destroyed 26 | . 12 14 Guns 18 | . 9 9 Cannons 4 | . . 4 AOE 3 | . 3 . Classes Destroyed 6 | 2 3 1 Tunneler 3 | 2 1 . Hauler 1 | . 1 . Recycler 1 | 1 . . Swarmer 4 | . 3 1 Grunt 11 | . 9 2 Subdweller 11 | . . 11 Best Kill Streak 4 | 2 3 4 Combat Bots Only 4 | . 3 4 Max Kills in Single Turn 2 | 1 2 1 Gunslinging 1 | . 1 . Exploded 1 | . 1 . Melee . | . . . Uniques/NPCs Destroyed . | . . . Combat | -11 -10 -10 -------- Run | Yrd Mat Sub Hostile Shots Fired 183 | . 63 120 Missed 46 | . 10 36 Hits 137 | . 53 84 Projectile 137 | . 53 84 Critical Strikes 4 | . 2 2 Damage Taken 1838 | 1 597 1240 Core 254 | 1 136 117 Absorbed by Shields . | . . . Regen/Repaired (Parts) 133 | . 133 . Core Remaining (%) 99 | 99 . . Volleys Fired 169 | 18 50 101 Largest 2 | 1 2 2 Hottest 90 | 20 60 90 Shots Fired 257 | 18 96 143 Gun 210 | 18 92 100 Cannon 43 | . . 43 Launcher 4 | . 4 . Special . | . . . Kinetic 163 | 18 73 72 Thermal 87 | . 16 71 Explosive 4 | . 4 . Electromagnetic 3 | . 3 . Robot Hit Streak 34 | 4 9 34 Robot Miss Streak 4 | 2 4 4 Penetration Max . | . . . Secondary Targets 1 | . 1 . Max Gunslinging Chain 1 | . 1 . Shots Hit Robots 155 | 13 62 80 Core Hits 52 | 7 25 20 Critical Kills 1 | . . 1 Critical Parts Destroyed . | . . . Critical Strikes 2 | . 1 1 Meltdown 1 | . . 1 Corrupt 1 | . 1 . Melee Attacks . | . . . Impact . | . . . Slashing . | . . . Piercing . | . . . Sneak Attacks . | . . . Combat Hostiles . | . . . Follow-up Attacks . | . . . Damage Inflicted 2197 | 102 682 1413 Guns 1524 | 99 509 916 Cannons 497 | . . 497 Explosions 173 | . 173 . Melee . | . . . Ramming 3 | 3 . . Kinetic 1045 | 99 376 570 Thermal 951 | . 108 843 Explosive 173 | . 173 . Electromagnetic 25 | . 25 . Impact . | . . . Slashing . | . . . Piercing . | . . . Highest Corruption 1 | 1 1 1 Average Corruption 1 | 1 1 1 Corruption Purged . | . . . Corruption Blocked . | . . . Effects 23 | . 3 20 Message Errors 10 | . 1 9 Matter Fused 5 | . . 5 Energy Discharges 4 | . 1 3 Data Loss (major) 2 | . 1 1 Misfires 2 | . . 2 Overload Shots . | . . . Overflow Damage . | . . . Projectiles . | . . . Explosions . | . . . Melee . | . . . Knockbacks . | . . . Impact . | . . . Kinetic . | . . . Secondary . | . . . Self-Inflicted Damage 1 | 1 . . Shots . | . . . Rammed 2 | 1 1 . Targets Rammed 2 | 1 1 . Kicked . | . . . Crushed . | . . . Highest Temperature 289 | . 88 289 Average Temperature 55 | . 24 151 Received Heat Transfer 1189 | . 279 910 Siege Activations . | . . . Martial Activations . | . . . Shielding Activations . | . . . Robots Disrupted . | . . . Combat Hostiles . | . . . Robots Corrupted . | . . . Combat Hostiles . | . . . Parts Fried . | . . . Impact Corruptions . | . . . Robots Melted 1 | . . 1 Combat Hostiles 1 | . . 1 Parts Melted 1 | . . 1 Heat Transferred 1566 | . 250 1316 Parts Sabotaged . | . . . Parts Stolen . | . . . Parts Stripped . | . . . Power Chain Reactions . | . . . Alert | -11 -10 -10 ------- Run | Yrd Mat Sub Maximum Alert Level . | . . . Low Security (%) 100 | 100 100 . Level 1 . | . . . Level 2 . | . . . Level 3 . | . . . Level 4 . | . . . Level 5 . | . . . High Security . | . . . Max Security . | . . . Peak Influence 122 | 5 122 . Initial . | . . . Average 40 | 1 46 . Influence Increases 677 | 15 352 310 Destroy 0b10 Robot/C 300 | . 240 60 Destroy 0b10 Robot/NC 25 | 15 10 . Destroy Leader 52 | . 42 10 Disable Machine 30 | . 30 . Destroy Structure 30 | . 30 . Lose Combat Pursuer 240 | . . 240 Influence Decreases 483 | 15 314 154 Entered New Map 19 | . . 19 Time Decay 434 | 15 304 115 Lost Part 30 | . 10 20 Squads Dispatched 2 | . 2 . Investigation . | . . . Extermination . | . . . Reinforcement 2 | . 2 . Assault . | . . . Garrison . | . . . Intercept . | . . . Searches Triggered . | . . . Construction Impeded . | . . . Haulers Reinforced . | . . . Active Scanning Responses . | . . . Cargo Convoy Interrupts . | . . . Stealth | -11 -10 -10 --------- Run | Yrd Mat Sub Distress Signals 2 | . 2 . Communications Jammed . | . . . Distress Signals . | . . . Times Spotted 42 | . 18 24 Peak Tracking Total 4 | . 4 3 Tactical Retreats 4 | . . 4 Traps | -11 -10 -10 ------- Run | Yrd Mat Sub Traps Triggered 1 | . . 1 Indirectly . | . . . Trap Hack Attempts . | . . . Triggered . | . . . Disarmed . | . . . Reprogrammed . | . . . Reused . | . . . Traps Extracted . | . . . Installed . | . . . Triggered . | . . . Machines | -11 -10 -10 ---------- Run | Yrd Mat Sub Machines Disabled 3 | . 2 1 Max in Single Turn 2 | . 2 1 Machines Repaired . | . . . Machines Dismantled . | . . . Machines Sabotaged . | . . . Overloaded Fab Kills . | . . . Hacking | -11 -10 -10 --------- Run | Yrd Mat Sub Machines Accessed 3 | . 1 2 Terminals . | . . . Fabricators . | . . . Repair Stations 1 | . 1 . Recycling Units . | . . . Scanalyzers . | . . . Garrison Access . | . . . Total Hacks 7 | . 2 5 Successful 7 | . 2 5 Failed . | . . . Catastrophic . | . . . Database Lockouts . | . . . Manual . | . . . Terminals . | . . . Fabricators . | . . . Repair Stations 2 | . 2 . Recycling Units . | . . . Scanalyzers . | . . . Garrison Access . | . . . Terminal Hacks 5 | . . 5 Record 4 | . . 4 Proto ID Catalog 1 | . . 1 Fabricator Hacks . | . . . Repair Station Hacks 2 | . 2 . Scan Component 1 | . 1 . Repair 1 | . 1 . Recycling Unit Hacks . | . . . Scanalyzer . | . . . Garrison Access Hacks . | . . . Unauthorized Hacks . | . . . Terminals . | . . . Fabricators . | . . . Repair Stations . | . . . Recycling Units . | . . . Scanalyzers . | . . . Garrison Access . | . . . Data Cores Recovered . | . . . Used . | . . . Hacking Detections . | . . . Full Trace Events . | . . . Feedback Events . | . . . Feedback Blocked . | . . . Robot Schematics Acquired . | . . . Robots Built . | . . . Authchips . | . . . Time . | . . . Total Robot Build Rating . | . . . Part Schematics Acquired . | . . . Parts Built . | . . . Authchips . | . . . Time . | . . . Total Part Build Rating . | . . . Part Studies Acquired . | . . . Parts Repaired 1 | . 1 . Time 26 | . 26 . Parts Recycled . | . . . Recycled Matter . | . . . Retrieved Matter . | . . . Retrieved Components . | . . . Parts Scanalyzed . | . . . Part Schematics Acquired . | . . . Parts Damaged . | . . . Bothacking | -11 -10 -10 ------------ Run | Yrd Mat Sub Used RIF Installer . | . . . Robots Hacked . | . . . Non-combat . | . . . Combat . | . . . Robot Hacks Applied . | . . . Relay Couplers Released . | . . . Fabnet Peak Effective % . | . . . Robots Rewired . | . . . Allies Hacked . | . . . Hacks Repelled . | . . . Allies | -11 -10 -10 -------- Run | Yrd Mat Sub Total Allies . | . . . Largest Group . | . . . Highest-Rated Group . | . . . Highest-Rated Ally . | . . . Total Orders . | . . . Ally Attacks . | . . . Total Damage . | . . . Kills . | . . . Allies Corrupted . | . . . Allies Melted . | . . . Intel | -11 -10 -10 ------- Run | Yrd Mat Sub Active Infowar (turns) 1121 | 1 890 230 Terrain 64 | . . 64 Seismic 1057 | 1 890 166 Robot Analysis Total . | . . . Derelict Logs Recovered 2 | . . 2 Drone Launches . | . . . Drone Recoveries . | . . . Exploration | -11 -10 -10 ------------- Run | Yrd Mat Sub Turns Passed 4748 | 140 890 3718 Spaces Moved 1986 | 67 364 1555 Core 18 | 18 . . Treads 475 | 49 364 62 Legs . | . . . Wheels 1493 | . . 1493 Hover . | . . . Flight . | . . . Fastest Speed 50 | 50 160 100 Average Speed 146 | 130 175 140 Slowest Speed 240 | 160 240 240 Overloaded Moves . | . . . Propulsion Burnouts . | . . . Robots Hopped . | . . . Potential Cave-ins . | . . . Cave-ins Triggered . | . . . Exploration Rate (%) 44 | 5 65 64 Regions Visited 2 Branch Regions 1 Pre-discovered Areas 1 | . . 1 Known Exits Taken . | . . . Unknown Exits Taken 2 | 1 1 . Scrap Searched 5 | . . 5 Spaces Dug 5 | . . 5 Terrain Destroyed 54 | . 47 7 Melee . | . . . Projectile 7 | . . 7 AOE 47 | . 47 . Terrain Rammed . | . . . Walls Destroyed . | . . . Machines Disabled . | . . . Actions | -11 -10 -10 --------- Run | Yrd Mat Sub Total 3590 | 106 536 2948 Wait 1304 | . 93 1211 Move 1984 | 66 363 1555 Hop . | . . . Pick Up 59 | 14 12 33 Fast Attach 2 | . . 2 Attach 18 | 6 2 10 Detach . | . . . Swap 17 | . 8 9 Drop 24 | 1 7 16 Fire 169 | 18 50 101 Melee . | . . . Ram 1 | 1 . . Kick . | . . . Crush 1 | . 1 . Escape Stasis . | . . . Rewire . | . . . Trap . | . . . Miscellaneous 11 | . . 11 Route ------- -11/Scrapyard -10/Materials (discovered 4 exits: [*Mat x2] / [*Min] / *Sub) -10/Subcaves (discovered 2 exits: [*Mat] / [*Rec]) History --------- Turn | Location | Event 6 | -11/Scrapyard | Discovered new exit (range 15) 141 | -11/Scrapyard | Entered Materials 340 | -10/Materials | Discovered new exit (range 7) 342 | -10/Materials | Build established: Mutant 532 | -10/Materials | Repaired Lgt. Treads 538 | -10/Materials | Discovered new exit (range 16) 728 | -10/Materials | Discovered new exit (range 3) 834 | -10/Materials | Core integrity fell below 50% 942 | -10/Materials | Build established: Scavenger-Mutant 1002 | -10/Materials | Discovered new exit (range 9) 1031 | -10/Materials | Entered Subcaves 1032 | -10/Subcaves | Approached by a straggling Scientist 1136 | -10/Subcaves | Discovered new exit (range 15) 1278 | -10/Subcaves | Lost 5 parts (1p3n1u) 1552 | -10/Subcaves | A swath of the cavern ceiling suddenly collapsed 1620 | -10/Subcaves | Build established: Subdweller-Mutant 2912 | -10/Subcaves | Shifting Twisted Machinery released Battle Rifle 2915 | -10/Subcaves | Shifting Twisted Machinery released Barrage Gun 3399 | -10/Subcaves | Core integrity fell below 20% 3897 | -10/Subcaves | Learned location of Storage (-7) 3963 | -10/Subcaves | Visited Clippyterm 3967 | -10/Subcaves | Learned 40 Factory zone layouts 3967 | -10/Subcaves | Learned Factory emergency access door positions 4342 | -10/Subcaves | Build established: Mutant 4490 | -10/Subcaves | Visited 4L-MR0's lab 4728 | -10/Subcaves | Discovered new exit (range 10) 4749 | -10/Subcaves | Destroyed by Autobeam Turret with Autobeam Last Messages --------------- Tower Shield Power Bank Rainbow Chip Procsplitter VL-GR5's Exoskeleton "Deathgrip" Powered Cannon UUS |XZU0ZE&SM>YRN2|UPIFWLBR972|B System corrupted: Matter fused (-6). Acquired 6 matter. Dropped Mak. Thermal Plating. Dropped Huge Storage Unit. Acquired Sub. Monowheel. Acquired Mak. Thermal Plating. Dropped Sub. Optics. Acquired Sub. Laser. Dropped Mak. Targeting Computer. Acquired Sub. Laser. Acquired 10 matter. EXIT=FOUND Machine disabled. Map ----- +----------------------------------------------------+ | ?????????????????????????????## #??? | | ???????????????????????????### ###??? | | ??????????????????????????## #????? | | ??????????????????????????# ###### #????? | | ??????????????????????????# ##????# #????? | | ??????????????????????????## #???### #????? | | ???????????????????????????# ##### ##???? | | ??????????????????????????## ##??? | | ??????????????????????????# #??? | | ??????????????????????????# ""## #??? | | ??????????????????????????##& "#### #??? | | ???????????????????????????#% ""#??#### #??? | | ???????????????????????????# " ####### #??? | | ??????????????????#####??#### " #??? | | ????????????????### #### ## """ #??? | | ###########?????# ## " " "" #??? | | ## ## ##???## #########??? | | ! ##??# " #??????????? | | = ##?# ##??#??????? | | # #?## ""%% "#?????????? | | #### #?## ## % "##?????##?? | | #### #### ### #### #### "#????# #?? | | " ## ### #####??# #?## "" ##??# #?? | | ## " " ###?###= ##??# #### ##?# #?? | | " " "" ###"%""##??## #### ## #?? | | "" @&"""#####%#"## #?? | | # ######## #####" #% % "### % #### | | #####??????####???#### ""### ### ### | | ?????????????????????# ##### ####?## ### | | ???????????????????" ??## #????## #### | | ??????????????????# ?# ###?## ### | | ??????????????????# ### ## #### ## | | ??????????????????# t t "## %* | | ??????????????????#" " " "## !=[!= | | ??????????????????#" "" """"## =!!#### ### | | ??????????????????#####<###### ! [!#### ### | | ??????????????????????##?????# * ### ## | | ?????????????????????????##??# #?#### | | ????????????????????????????## ###????### | | ????????????????????????????# #????????## | | ???????????????????#????????# ##????????## | | ????????????????????????#?#?## ##????????## | | ???????????????????##????????##" ##?###??##### | | ???????????????????# ########?#""" ###"#### ##? | | ??????????????????### # # #"#?# """" ## | | ??????????????????# ### ##" " !# | | ??????????????????# #### # ## ##""# #"#" % | | ??????????????????# #??### " "####### # | | ??????????????????###????# " ##????## # | | ?????????????????????????## #### "#?#### | +----------------------------------------------------+ Best States ------------- Heat Dissipation 25 Energy Generation 10 Energy Capacity 250 Matter Stores 300 Matter Capacity 300 Sight Range 16 Terrain Scan Range 16 Terrain Scan Density 10 Armor Coverage 800 Resistance: TH 10 Evasion (%) 40 Recoil Reduction 2 Item Schematics ----------------- None Robot Schematics ------------------ None Fabricated ------------ Nothing Repaired ---------- Lgt. Treads | 5% | -10/Materials Studied --------- None Alien Tech Used ----------------- None Achievements -------------- None Challenges ------------ None Game ------ Seed SubdwellerSuperdenseStick Manual? 1 Play Time 00:22:07 Cumulative 554.5 hours Start 2026.08.06 @ 16:40:12 End 2026.08.06 @ 17:03:47 Sessions 1 Manual Loads 0 Difficulty Rogue Special Mode None Game No. 316 Rogue 316 Adventurer 0 Explorer 0 Win Type - Total 36 Types 17/2/7/2/1/1/1/2/1/2 Lore% 97 Gallery% 92 Achievement% 86 Wizard Run 0 Options --------- Layout 1 ASCII 0 Keyboard 0 Movement Numpad Keybinds 0 Fullscreen 1 Font 24/Proggy Map View 50x35 Zoom Use 0% Tactical HUD 0 Map Filters NONE Filters NONE Steam 1 RUN: ad403f59-19c8-46f8-85bb-1e9a32099efc